Cogmind - Beta 13 @@@ ROGUE MODE // 2024.04.07 @ 19:11:48 Player: Aklangi Result: Destroyed by D-53 Grenadier with Mini Grenade Launcher Performance ------------- Evolutions (0) 0 Regions Visited (2) 400 Robots Destroyed (14) 70 Value Destroyed (306) 306 Prototype IDs (0) 0 Alien Tech Used (0) 0 Bonus (0) 0 TOTAL SCORE: 776 Bonus ------- None Cogmind --------- Core Integrity 0/250 Matter 166/300 Energy 99/100 System Corruption 1% Temperature Cool (0) Movement Core (450) Ox8 Location -10/Mines Parts ------- > --- POWER (1) -------- (None) > --- PROPULSION (2) --- (None) > --- UTILITY (2) ------ Small Storage Unit Large Storage Unit > --- WEAPON (2) ------- Assault Rifle > --- INVENTORY (15) --- Assault Rifle Light Assault Rifle Grenade Launcher Datajack Mining Laser Peak State ------------ > --- POWER ------------ Light Ion Engine > --- PROPULSION ------- Light Treads Light Treads > --- UTILITY ---------- Large Storage Unit Hacking Suite > --- WEAPON ----------- EM Shotgun Assault Rifle > --- INVENTORY -------- Ion Engine Small Storage Unit Light Armor Plating Shield Generator Medium Laser Assault Rifle Light Assault Rifle Grenade Launcher Datajack [Rating: 11] Favorites ----------- Power Light Ion Engine Engine Light Ion Engine Propulsion Light Treads Treads Light Treads Utility Large Storage Unit Device Shield Generator Storage Large Storage Unit Hackware Hacking Suite Protection Light Armor Plating Weapon Assault Rifle Energy Gun Medium Laser Ballistic Gun Assault Rifle Launcher Grenade Launcher Build | -11 -10 -10 ------- Run | Yrd Mat Min Slots Evolved . | . . . Power . | . . . Propulsion . | . . . Utility . | . . . Weapon . | . . . Parts Attached 18 | 6 11 1 Power 2 | 1 1 . Engine 2 | 1 1 . Core . | . . . Reactor . | . . . Propulsion 3 | 2 1 . Treads 3 | 2 1 . Leg . | . . . Wheel . | . . . Hover . | . . . Flight . | . . . Utility 7 | 1 5 1 Device 1 | . 1 . Storage 3 | 1 1 1 Processor . | . . . Hackware 1 | . 1 . Protection 2 | . 2 . Artifact . | . . . Weapon 6 | 2 4 . Energy Gun 3 | 1 2 . Energy Cannon . | . . . Ballistic Gun 2 | 1 1 . Ballistic Cannon . | . . . Launcher 1 | . 1 . Special Weapon . | . . . Impact Weapon . | . . . Slashing Weapon . | . . . Piercing Weapon . | . . . Special Melee Weapon . | . . . Unidentified Prototypes . | . . . Parts Lost 9 | . 4 5 Power 2 | . 1 1 Propulsion 3 | . 1 2 Utility 2 | . 1 1 Weapon 2 | . 1 1 Highest Loss Streak 5 | . 4 5 To Critical Strikes . | . . . Average Slot Usage (%) 94 | . 95 85 Engine 13 | . 13 11 Treads 27 | . 27 22 Storage 14 | . 14 16 Hackware 9 | . 9 . Protection 1 | . 1 8 Energy Gun 13 | . 13 11 Ballistic Gun 14 | . 14 14 Naked Turns . | . . . Heaviest Build 32 | 12 32 32 Greatest Support 40 | 40 40 40 Greatest Overweight (x) 3 | 3 1 1 Average Overweight (x) . | . . . Largest Inventory Capacity 15 | 8 15 15 Average Capacity 13 | 7 14 15 Most Carried 10 | 2 10 6 Average Carried 6 | 1 6 5 Final Capacity 15 | 8 15 15 Final Carried 6 | 2 6 5 Class Distribution -------------------- 100% | Mutant Dominant Class ---------------- Mutant | -10/Materials Mutant | -10/Mines Resources | -11 -10 -10 ----------- Run | Yrd Mat Min Matter Collected 381 | 220 161 . Remotely . | . . . Salvage Created 311 | 30 281 . Parts 17 | 2 15 . Haulers Intercepted 1 | . 1 . Recyclers Shooed . | . . . Parts Field Recycled . | . . . Retrieved Matter . | . . . Parts Self-Destructed . | . . . Prevented . | . . . Kills | -11 -10 -10 ------- Run | Yrd Mat Min Combat Hostiles Destroyed 9 | . 9 . Guns 3 | . 3 . AOE 6 | . 6 . Classes Destroyed 7 | 1 6 . Builder 1 | . 1 . Tunneler 1 | 1 . . Hauler 1 | . 1 . Recycler 1 | . 1 . Operator 1 | . 1 . Swarmer 3 | . 3 . Grunt 6 | . 6 . Best Kill Streak 10 | 1 10 . Combat Bots Only 8 | . 8 . Max Kills in Single Turn 2 | 1 2 . Gunslinging . | . . . Exploded 2 | . 2 . Melee . | . . . Uniques/NPCs Destroyed . | . . . Combat | -11 -10 -10 -------- Run | Yrd Mat Min Hostile Shots Fired 80 | . 55 25 Missed 20 | . 15 5 Damage Taken 1413 | . 605 808 Core 250 | . 147 103 Absorbed by Shields . | . . . Core Remaining (%) 100 | 100 . . Volleys Fired 29 | 2 20 7 Largest 2 | 2 2 2 Hottest 70 | 70 70 70 Shots Fired 54 | 4 39 11 Gun 46 | 4 31 11 Cannon . | . . . Launcher 8 | . 8 . Special . | . . . Kinetic 29 | 2 20 7 Thermal 9 | 2 3 4 Explosive 8 | . 8 . Electromagnetic 8 | . 8 . Robot Hit Streak 7 | 1 7 3 Robot Miss Streak 4 | 2 4 4 Penetration Max . | . . . Secondary Targets . | . . . Shots Hit Robots 32 | 1 25 6 Core Hits 25 | 1 24 . Critical Kills . | . . . Critical Parts Destroyed . | . . . Critical Strikes . | . . . Melee Attacks . | . . . Impact . | . . . Slashing . | . . . Piercing . | . . . Sneak Attacks . | . . . Combat Hostiles . | . . . Follow-up Attacks . | . . . Damage Inflicted 1262 | 13 1161 88 Guns 367 | 13 266 88 Cannons . | . . . Explosions 895 | . 895 . Melee . | . . . Ramming . | . . . Kinetic 230 | . 179 51 Thermal 442 | 13 392 37 Explosive 516 | . 516 . Electromagnetic 74 | . 74 . Impact . | . . . Slashing . | . . . Piercing . | . . . Highest Corruption 1 | . 1 1 Average Corruption 1 | . 1 1 Corruption Purged . | . . . Corruption Blocked . | . . . Effects 4 | . 4 . Message Errors 1 | . 1 . Matter Fused 2 | . 2 . Heat Flow Errors 1 | . 1 . Overload Shots . | . . . Overflow Damage 49 | . 49 . Projectiles . | . . . Explosions 49 | . 49 . Melee . | . . . Knockbacks . | . . . Impact . | . . . Kinetic . | . . . Secondary . | . . . Self-Inflicted Damage 109 | . 109 . Shots 3 | . 3 . Rammed . | . . . Targets Rammed . | . . . Kicked . | . . . Crushed . | . . . Highest Temperature 230 | 9 230 54 Average Temperature 40 | 6 47 25 Received Heat Transfer 267 | . 267 . Siege Activations . | . . . Robots Corrupted . | . . . Combat Hostiles . | . . . Parts Fried . | . . . Impact Corruptions . | . . . Robots Melted . | . . . Combat Hostiles . | . . . Parts Melted . | . . . Heat Transferred 435 | 37 287 111 Parts Sabotaged . | . . . Parts Stolen . | . . . Parts Stripped . | . . . Power Chain Reactions 1 | . 1 . Alert | -11 -10 -10 ------- Run | Yrd Mat Min Peak Influence 375 | 5 375 145 Initial 145 | . 3 145 Average 71 | . 73 132 Maximum Alert Level 1 | . 1 . Low Security (%) 87 | 100 86 100 Level 1 12 | . 13 . Level 2 . | . . . Level 3 . | . . . Level 4 . | . . . Level 5 . | . . . High Security . | . . . Max Security . | . . . Squads Dispatched 2 | . 2 . Investigation 1 | . 1 . Extermination . | . . . Reinforcement 1 | . 1 . Assault . | . . . Garrison . | . . . Intercept . | . . . Searches Triggered . | . . . Construction Impeded . | . . . Haulers Reinforced . | . . . Active Scanning Responses . | . . . Cargo Convoy Interrupts . | . . . Stealth | -11 -10 -10 --------- Run | Yrd Mat Min Distress Signals 2 | . 2 . Communications Jammed . | . . . Distress Signals . | . . . Times Spotted 22 | . 18 4 Peak Tracking Total 8 | . 8 7 Tactical Retreats 1 | . 1 . Traps | -11 -10 -10 ------- Run | Yrd Mat Min Traps Triggered 1 | . 1 . Indirectly . | . . . Trap Hack Attempts . | . . . Triggered . | . . . Disarmed . | . . . Reprogrammed 1 | . 1 . Reused . | . . . Traps Extracted . | . . . Installed . | . . . Triggered . | . . . Machines | -11 -10 -10 ---------- Run | Yrd Mat Min Machines Disabled 1 | . 1 . Max in Single Turn 1 | . 1 . Machines Repaired . | . . . Machines Dismantled . | . . . Machines Sabotaged . | . . . Overloaded Fab Kills . | . . . Hacking | -11 -10 -10 --------- Run | Yrd Mat Min Machines Accessed 8 | . 8 . Terminals 6 | . 6 . Fabricators . | . . . Repair Stations . | . . . Recycling Units 2 | . 2 . Scanalyzers . | . . . Garrison Access . | . . . Total Hacks 30 | . 30 . Successful 17 | . 17 . Failed 13 | . 13 . Catastrophic 2 | . 2 . Database Lockouts . | . . . Manual 11 | . 11 . Terminals 25 | . 25 . Fabricators . | . . . Repair Stations . | . . . Recycling Units 5 | . 5 . Scanalyzers . | . . . Garrison Access . | . . . Terminal Hacks 12 | . 12 . Branch Access Points 1 | . 1 . Emergency Access Points 1 | . 1 . Alert Level 1 | . 1 . Locate Traps 2 | . 2 . Reprogram Traps 1 | . 1 . Maintenance Status 1 | . 1 . Hauler Manifests 2 | . 2 . Registered Components 1 | . 1 . Zone Layout 2 | . 2 . Fabricator Hacks . | . . . Repair Station Hacks . | . . . Recycling Unit Hacks 5 | . 5 . Report Inventory 1 | . 1 . Retrieve Matter 2 | . 2 . Retrieve Components 2 | . 2 . Scanalyzer . | . . . Garrison Access Hacks . | . . . Unauthorized Hacks . | . . . Terminals . | . . . Fabricators . | . . . Repair Stations . | . . . Recycling Units . | . . . Scanalyzers . | . . . Garrison Access . | . . . Data Cores Recovered . | . . . Used . | . . . Hacking Detections 6 | . 6 . Full Trace Events 2 | . 2 . Feedback Events . | . . . Feedback Blocked . | . . . Robot Schematics Acquired . | . . . Robots Built . | . . . Authchips . | . . . Time . | . . . Total Robot Build Rating . | . . . Part Schematics Acquired . | . . . Parts Built . | . . . Authchips . | . . . Time . | . . . Total Part Build Rating . | . . . Parts Repaired . | . . . Time . | . . . Parts Recycled . | . . . Recycled Matter . | . . . Retrieved Matter . | . . . Retrieved Components 6 | . 6 . Parts Scanalyzed . | . . . Part Schematics Acquired . | . . . Parts Damaged . | . . . Bothacking | -11 -10 -10 ------------ Run | Yrd Mat Min Used RIF Installer . | . . . Robots Hacked . | . . . Non-combat . | . . . Combat . | . . . Robot Hacks Applied . | . . . Relay Couplers Released . | . . . Fabnet Peak Effective % . | . . . Robots Rewired . | . . . Allies Hacked . | . . . Hacks Repelled . | . . . Allies | -11 -10 -10 -------- Run | Yrd Mat Min Total Allies . | . . . Largest Group . | . . . Highest-Rated Group . | . . . Highest-Rated Ally . | . . . Total Orders . | . . . Ally Attacks . | . . . Total Damage . | . . . Kills . | . . . Allies Corrupted . | . . . Allies Melted . | . . . Intel | -11 -10 -10 ------- Run | Yrd Mat Min Robot Analysis Total . | . . . Derelict Logs Recovered . | . . . Drone Launches . | . . . Drone Recoveries . | . . . Exploration | -11 -10 -10 ------------- Run | Yrd Mat Min Turns Passed 918 | 67 799 52 Spaces Moved 490 | 33 438 19 Core 10 | 10 . . Treads 480 | 23 438 19 Legs . | . . . Wheels . | . . . Hover . | . . . Flight . | . . . Fastest Speed 50 | 50 160 160 Average Speed 161 | 153 161 181 Slowest Speed 240 | 200 240 240 Overloaded Moves . | . . . Propulsion Burnouts . | . . . Robots Hopped . | . . . Cave-ins Triggered . | . . . Exploration Rate (%) 30 | 4 77 10 Regions Visited 2 Branch Regions 1 Pre-discovered Areas . | . . . Known Exits Taken 1 | . 1 . Unknown Exits Taken 1 | 1 . . Scrap Searched . | . . . Spaces Dug . | . . . Terrain Destroyed 100 | . 100 . Melee . | . . . Projectile . | . . . AOE 100 | . 100 . Terrain Rammed . | . . . Walls Destroyed . | . . . Machines Disabled . | . . . Actions | -11 -10 -10 --------- Run | Yrd Mat Min Total 561 | 42 492 27 Wait 12 | . 12 . Move 488 | 32 437 19 Hop . | . . . Pick Up 11 | 2 9 . Fast Attach 7 | 6 1 . Attach 8 | . 7 1 Detach 2 | . 2 . Swap 3 | . 3 . Drop 1 | . 1 . Fire 29 | 2 20 7 Melee . | . . . Ram . | . . . Kick . | . . . Crush . | . . . Escape Stasis . | . . . Rewire . | . . . Trap . | . . . Miscellaneous . | . . . Route ------- -11/Scrapyard -10/Materials (discovered 4 exits: [*Mat x2] / *Min x2) -10/Mines History --------- Turn | Location | Event 15 | -11/Scrapyard | Discovered new exit (range 15) 68 | -11/Scrapyard | Entered Materials 80 | -10/Materials | Discovered new exit (range 19) 80 | -10/Materials | Identified exit to Mines 281 | -10/Materials | Discovered new exit (range 4) 305 | -10/Materials | Build established: Mutant 735 | -10/Materials | Discovered new exit (range 3) 764 | -10/Materials | Core integrity fell below 50% 796 | -10/Materials | Lost 4 parts (1p1n1u1w) 797 | -10/Materials | Destroyed 8 combat bots 867 | -10/Materials | Entered Mines 872 | -10/Mines | Assembled infested the area 877 | -10/Mines | Assisted by a Guerilla fighting off Assembled 902 | -10/Mines | Core integrity fell below 20% 919 | -10/Mines | Destroyed by D-53 Grenadier with Mini Grenade Launcher Last Messages --------------- 00890_ K-01 Serf collects debris. 00891_ K-01 Serf destroyed. 00893_ T-07 Excavator destroyed. 00895_ as-15064 destroyed. 00897_ Lgt. Treads destroyed. 00899_ Lgt. Armor Plating destroyed. 00903_ The unstable cave ceiling collapses. 00903_ K-01 Serf cleans the Plasma Injector. 00907_ The unstable cave ceiling collapses. 00907_ Med. Laser destroyed. 00907_ D-53 Grenadier destroyed. 00909_ K-01 Serf collects debris. 00909_ U-05 Engineer builds a Wall. 00909_ Ion Engine destroyed. 00911_ K-01 Serf destroyed. 00913_ The unstable cave ceiling collapses. 00913_ U-05 Engineer lays Concrete. 00915_ U-05 Engineer builds a Wall. 00915_ U-05 Engineer destroyed. 00917_ Lgt. Treads destroyed. Map ----- +----------------------------------------------------+ | ??????????????????????????????????????? | | ??????????????????????????????????????? | | ??????????????????????????????????????? | | ??????????????????????????????????????? | | ??????????????????????????????????????? | | ??????????????????????????????????????? | | ??????????????????????????????????????? | | ??????????????????????????????????????? | | ??????????????????????????????????????? | | ??????????????????????????????????????? | | ??????????????????????????????????????? | | ??????????????????????????????????????? | | ??????????????????????????????????????? | | ??????????????????????????????????????? | | ??????????????????????????????????????? | | ??????????????????????????????????????? | | ??????????????????????????????????????? | | ??????????????????????????????????????? | | ??????????????????????????????????????? | | ?????????????######???????????????????? | | ???????????### ????????????????????? | | ??????????## # # ##???????????????????? | | ??????????# = ##??????????????????? | | ?????????## ! #??????????????????? | | ?????????# #??????????????????? | | ?????????## @ #??????????????????? | | ????????## d #??????????????????? | | ???????## #??????????????????? | | ???????# #?????????????????? | | ???????# ##?????????????????? | | ???????# #??????????????????? | | ???????# ##??????????????????? | | ???????# ###???????????????????? | | ???????# #????????????????????? | | ???????# #????????????????????? | | ???????# #????????????????????? | | ???????# ##????????????????????? | | ???????# #?????????????????????? | | ???????# #?????????????????????? | | ???######## a####?????????????????????? | | ???# =% ## ??????????????????? | | ???# """ #???????????????????? | | ???# """ ####???????????????????? | | ???# """ #??????????????????????? | | ???# #??????????????????????? | | ???# #??????????????????????? | | ???# #??????????????????????? | | ???#############??????????????????????? | | ??????????????????????????????????????? | | ??????????????????????????????????????? | +----------------------------------------------------+ Best States ------------- Heat Dissipation 25 Energy Generation 10 Energy Capacity 250 Matter Stores 291 Matter Capacity 300 Sight Range 16 Terrain Scan Density 10 Armor Coverage 150 Evasion (%) 40 Recoil Reduction 2 Offensive Hacking 10 Item Schematics ----------------- None Robot Schematics ------------------ None Fabricated ------------ Nothing Alien Tech Used ----------------- None Achievements -------------- None Challenges ------------ None Game ------ Seed AccelerationTripodShredder Manual? 0 Play Time 00:09:31 Cumulative 15.4 hours Start 2024.04.07 @ 19:03:14 End 2024.04.07 @ 19:11:48 Sessions 1 Manual Loads 0 Difficulty Rogue Special Mode None Game No. 30 Rogue 30 Adventurer 0 Explorer 0 Win Type - Total 1 Types 1/0/0/0/0/0/0/0/0 Lore% 22 Gallery% 30 Achievement% 31 Wizard Run 0 Options --------- Layout 0 ASCII 0 Keyboard 0 Movement Mouse Keybinds 0 Fullscreen 1 Font 18/SmallcapsGlow Map View 76x50 Zoom Use 0% Tactical HUD 1 Map Filters NONE Filters NONE Steam 1 RUN: 456283bb-cdd5-49d8-9180-e536dcf5008f